fUSD/lending_fUSD_20240203
["ID","MTS","AMOUNT","RATE_DAILY","PERIOD"]
[313222280,1706967083365,-151.0,0.00041096,14]
[313222281,1706967083374,-151.0,0.00041096,14]
[313222282,1706967083383,-151.0,0.00041096,14]
[313222283,1706967083391,-151.0,0.00041096,14]
[313222284,1706967083400,-151.0,0.00041096,14]
[313222285,1706967083409,-151.0,0.00041096,14]
[313222286,1706967083418,-286.554234,0.00041096,14]
[313222287,1706967083428,-200.393253,0.00041096,7]
[313222288,1706967083438,-184.452982,0.00041096,14]
[313222289,1706967083447,-184.452982,0.00041096,14]
[313222290,1706967083457,-184.452982,0.00041096,14]
[313222291,1706967083466,-184.452982,0.00041096,14]
[313222292,1706967083479,-184.452982,0.00041096,14]
[313222293,1706967083488,-184.452982,0.00041096,14]
[313222294,1706967083497,-184.452982,0.00041096,14]
[313222295,1706967083507,-184.452982,0.00041096,14]
[313222296,1706967083516,-184.452982,0.00041096,14]
[313222297,1706967083526,-184.452982,0.00041096,14]
[313222298,1706967083535,-184.452982,0.00041096,14]
[313222299,1706967083545,-184.452982,0.00041096,14]
[313222300,1706967083554,-184.452982,0.00041096,14]
[313222301,1706967083564,-184.452982,0.00041096,14]
[313222302,1706967083573,-184.452982,0.00041096,14]
[313222303,1706967083582,-184.452982,0.00041096,14]
[313222304,1706967083592,-184.452982,0.00041096,14]
[313222305,1706967083601,-184.452982,0.00041096,14]
[313222306,1706967083610,-184.452982,0.00041096,14]
[313222307,1706967083619,-184.45299,0.00041096,14]
[313222308,1706967083628,-251.949316,0.00041096,14]
[313222309,1706967083638,-251.949316,0.00041096,14]
[313222310,1706967083647,-251.949316,0.00041096,14]
[313222311,1706967083657,-251.949316,0.00041096,14]
[313222312,1706967083666,-251.949316,0.00041096,14]
[313222313,1706967083675,-251.949316,0.00041096,14]
[313222314,1706967083685,-251.949316,0.00041096,14]
[313222315,1706967083694,-251.949316,0.00041096,14]
[313222316,1706967083703,-251.949316,0.00041096,14]
[313222317,1706967083712,-251.949316,0.00041096,14]
[313222318,1706967083721,-251.949316,0.00041096,14]
[313222319,1706967083730,-251.949316,0.00041096,14]
[313222320,1706967083739,-251.949316,0.00041096,14]
[313222321,1706967083749,-251.949316,0.00041096,14]
[313222322,1706967083758,-251.949316,0.00041096,14]
[313222323,1706967083767,-1030.198014,0.00041096,14]
[313222324,1706967083776,-251.949316,0.00041096,14]
[313222325,1706967083785,-1030.198014,0.00041096,14]
[313222326,1706967083794,-251.949316,0.00041096,14]
[313222327,1706967083803,-1030.198014,0.00041096,14]
[313222328,1706967083812,-251.949316,0.00041096,14]
[313222329,1706967083821,-1030.198014,0.00041096,14]
[313222330,1706967083831,-251.949316,0.00041096,14]
[313222331,1706967083840,-1030.198014,0.00041096,14]
[313222332,1706967083849,-251.949317,0.00041096,14]
[313222333,1706967083858,-1030.198014,0.00041096,14]
[313222334,1706967083867,-1030.198014,0.00041096,14]
[313222335,1706967083876,-1030.198014,0.00041096,14]
[313222336,1706967083885,-1030.198014,0.00041096,14]
[313222337,1706967083894,-1030.198014,0.00041096,14]
[313222338,1706967083903,-1030.198014,0.00041096,14]
[313222339,1706967083912,-1030.198014,0.00041096,14]
[313222340,1706967083921,-1030.198014,0.00041096,14]
[313222341,1706967083930,-1030.198014,0.00041096,14]
[313222342,1706967083939,-1030.198014,0.00041096,14]
[313222343,1706967083948,-161.731412,0.00041096,14]
[313222344,1706967083957,-1030.198014,0.00041096,14]
[313222345,1706967083966,-1030.198014,0.00041096,14]
[313222346,1706967083975,-1030.198014,0.00041096,14]
[313222347,1706967083984,-1030.198014,0.00041096,14]
[313222348,1706967083993,-1030.198016,0.00041096,14]
[313222349,1706967084002,-1135.761113,0.00041096,14]
[313222350,1706967084013,-1135.761113,0.00041096,14]
[313222351,1706967084022,-1135.761113,0.00041096,14]
[313222352,1706967084031,-1135.761113,0.00041096,14]
[313222353,1706967084040,-1135.761113,0.00041096,14]
[313222354,1706967084049,-1135.761113,0.00041096,14]
[313222355,1706967084058,-1135.761113,0.00041096,14]
[313222356,1706967084067,-1135.761113,0.00041096,14]
[313222357,1706967084076,-1135.761113,0.00041096,14]
[313222358,1706967084086,-1135.761113,0.00041096,14]
[313222359,1706967084095,-1135.761113,0.00041096,14]
[313222360,1706967084104,-1135.761113,0.00041096,14]
[313222361,1706967084113,-1135.761113,0.00041096,14]
[313222362,1706967084122,-1135.761113,0.00041096,14]
[313222363,1706967084131,-151.0,0.00041096,14]
[313222364,1706967084140,-1135.761113,0.00041096,14]
[313222365,1706967084149,-151.0,0.00041096,14]
[313222366,1706967084158,-1135.761113,0.00041096,14]
[313222367,1706967084167,-151.0,0.00041096,14]
[313222368,1706967084176,-151.0,0.00041096,14]
[313222369,1706967084185,-1135.761113,0.00041096,14]
[313222370,1706967084195,-167.103509,0.00041096,14]
[313222371,1706967084203,-1135.761113,0.00041096,14]
[313222372,1706967084212,-1135.761113,0.00041096,14]
[313222373,1706967084221,-1135.761118,0.00041096,14]
[313222374,1706967084231,-5745.570009,0.00041096,14]
[313222375,1706967084240,-151.0,0.00041096,14]
[313222376,1706967084249,-5745.570009,0.00041096,14]
[313222377,1706967084258,-151.0,0.00041096,14]
[313222378,1706967084267,-5745.570009,0.00041096,14]
[313222379,1706967084277,-151.0,0.00041096,14]
[313222380,1706967084286,-5745.570009,0.00041096,14]
[313222381,1706967084295,-5745.570009,0.00041096,14]
[313222382,1706967084304,-5745.570009,0.00041096,14]
[313222383,1706967084313,-5745.570009,0.00041096,14]
[313222384,1706967084322,-151.0,0.00041096,14]
[313222385,1706967084331,-151.0,0.00041096,14]
[313222386,1706967084340,-5745.570009,0.00041096,14]
[313222387,1706967084349,-5745.570009,0.00041096,14]
[313222388,1706967084358,-285.656933,0.00041096,14]
[313222389,1706967084462,-5745.570009,0.00041096,14]
[313222390,1706967084483,-5745.570009,0.00041096,14]
[313222391,1706967084493,-5745.570009,0.00041096,14]
[313222392,1706967084502,-5745.570009,0.00041096,14]
[313222393,1706967084511,-5745.570009,0.00041096,14]
[313222394,1706967084520,-5745.570009,0.00041096,14]
[313222395,1706967084530,-5745.570009,0.00041096,14]
[313222396,1706967084539,-153.039325,0.00041096,14]
[313222397,1706967084549,-5745.570009,0.00041096,14]
[313222398,1706967084559,-5745.570009,0.00041096,14]
[313222399,1706967084568,-5745.570009,0.00041096,14]
[313222400,1706967084577,-5745.570006,0.00041096,14]
[313222401,1706967084586,-784.44104327,0.00041096,4]
[313222402,1706967084596,-155.0,0.00041096,4]
[313222403,1706967084605,-6698.42009651,0.00041096,4]
[313222404,1706967084615,-4627.44826007,0.00041096,20]
[313222405,1706967084623,-1208.85252481,0.00041096,4]
[313222406,1706967084633,-623.61635149,0.00041096,2]
[313222407,1706967084643,-33892.75277748,0.00041096,4]
[313222408,1706967084652,-6440.44562918,0.00041096,2]
[313222409,1706967084663,-150.0,0.00041096,2]
[313222410,1706967084672,-155.0,0.00041097,2]
[313222411,1706967084681,-1407.42044827,0.000411,2]
[313222412,1706967084691,-1125.0,0.000411,2]
[313222413,1706967084702,-150.1,0.000411,2]
[313222414,1706967084711,-228.9925312,0.000411,2]
[313222415,1706967084721,-250.77946625,0.000411,2]
[313222416,1706967084730,-562.0,0.000411,2]
[313222417,1706967084739,-2610.95458087,0.000411,2]
[313222418,1706967084749,-281.58080126,0.000411,2]
[313222419,1706967084758,-153.82890557,0.00041109,30]
[313222420,1706967084768,-2571.77371309,0.00041111,30]
[313222421,1706967084777,-153.82890557,0.00041245,30]
[313222422,1706967084786,-5767.00741338,0.00041253,8]
[313222423,1706967084795,-871.90440783,0.00041283,4]
[313222424,1706967084804,-4009.2859023,0.000413,2]
[313222425,1706967084813,-954.44873093,0.00041376,30]
[313222426,1706967084822,-223.0,0.000414,7]
[313222427,1706967084831,-178.0,0.00041424,2]
[313222428,1706967084840,-299.27779395,0.00041434,30]
[313222429,1706967084850,-155.55,0.00041438,2]
[313222430,1706967084859,-1000.0,0.00041471,4]
[313222431,1706967084868,-954.44873093,0.00041489,30]
[313222432,1706967084877,-679.97359128,0.00041514,13]
[313222433,1706967084886,-184.81961446,0.00041522,4]
[313222434,1706967084895,-152.57148147,0.00041546,12]
[313222435,1706967084904,-151.03304887,0.00041552,2]
[313222436,1706967084913,-207.0,0.00041567,31]
[313222437,1706967084922,-205.0,0.00041567,31]
[313222438,1706967084931,-534.974774,0.00041567,30]
[313222439,1706967084941,-298.002477,0.00041567,30]
[313222440,1706967084950,-391.971729,0.00041567,30]
[313222441,1706967084959,-447.003716,0.00041567,30]
[313222442,1706967084968,-425.990499,0.00041567,30]
[313222443,1706967084978,-183.09987742,0.00041568,3]
[313222444,1706967084986,-236.75454593,0.00041568,3]
[313222445,1706967084996,-302.0,0.00041661,4]
[313222446,1706967085005,-7647.31876799,0.00041726,5]
[313222447,1706967085014,-10015.21859205,0.000418,7]
[313222448,1706967085023,-1868.28,0.000418,30]
[313222449,1706967085033,-158.02798028,0.00041804,30]
[313222450,1706967085042,-4069.0265121,0.0004188,30]
[313222451,1706967085051,-4007.7,0.000419,4]
[313222452,1706967085060,-4007.7,0.000419,4]
[313222453,1706967085070,-4007.7,0.000419,4]
[313222454,1706967085079,-4007.7,0.000419,4]
[313222455,1706967085088,-4007.7,0.000419,4]
[313222456,1706967085097,-4007.7,0.000419,4]
[313222457,1706967085106,-4007.7,0.000419,4]
[313222458,1706967085116,-4007.7,0.000419,4]
[313222459,1706967085125,-4007.7,0.000419,4]
[313222460,1706967085135,-4007.7,0.000419,4]
[313222461,1706967085144,-4007.7,0.000419,4]
[313222462,1706967085154,-4007.7,0.000419,4]
[313222463,1706967085165,-4007.7,0.000419,4]
[313222464,1706967085174,-4007.7,0.000419,4]
[313222465,1706967085184,-4007.7,0.000419,4]
[313222466,1706967085194,-4007.7,0.000419,4]
[313222467,1706967085204,-4007.7,0.000419,4]
[313222468,1706967085214,-4007.7,0.000419,4]
[313222469,1706967085224,-4007.7,0.000419,4]
[313222470,1706967085234,-4007.7,0.000419,4]
[313222471,1706967085243,-506.34406,0.00041918,14]
[313222472,1706967085253,-158.02798028,0.00041934,30]
[313222473,1706967085262,-1369.723229,0.00041946,7]
[313222474,1706967085271,-100000.0,0.00042,12]
[313222475,1706967085281,-16386.56758155,0.00042,2]
[313222476,1706967085290,-2009.65,0.00042,14]
[313222477,1706967085299,-6283.37,0.00042,7]
[313222478,1706967085307,-9611.54,0.00042,7]
[313222479,1706967085318,-11937.82,0.00042,4]
[313222480,1706967085327,-2238.90384018,0.00042,4]
[313222481,1706967085336,-3007.18521693,0.00042,10]
[313222482,1706967085345,-1331.34,0.00042,7]
[313222483,1706967085354,-39223.64,0.00042,7]
[313222484,1706967085366,-731.62828587,0.00042,4]
[313222485,1706967085375,-15024.0,0.00042,2]
[313222486,1706967085385,-500.0,0.00042,7]
[313222487,1706967085394,-457.86315461,0.00042,7]
[313222488,1706967085403,-506.61698402,0.00042,3]
[313222489,1706967085413,-3915.7464313,0.00042,30]
[313222490,1706967085422,-2341.382,0.00042,7]
[313222491,1706967085431,-35000.0,0.00042,8]
[313222492,1706967085441,-2000.0,0.00042,2]
[313222493,1706967085450,-13589.5775918,0.00042,30]
[313222494,1706967085460,-1500.0,0.00042,4]
[313222495,1706967085471,-176697.57774898,0.00042,5]
[313222496,1706967085480,-500.0,0.00042,14]
[313222497,1706967085490,-2750.0,0.00042,3]
[313222498,1706967085499,-1276.754583,0.00042,2]
[313222499,1706967085508,-1306.4410918,0.00042,2]
[313222500,1706967085517,-2000.0,0.00042,8]
[313222501,1706967085526,-201.76329114,0.00042,2]
[313222502,1706967085535,-17366.1061885,0.00042046,2]
[313222503,1706967085546,-12308.05560218,0.00042046,2]
[313222504,1706967085555,-1842.63869095,0.00042046,2]
[313222505,1706967085564,-643.0,0.00042046,2]
[313222506,1706967085573,-930.34874094,0.00042046,2]
[313222507,1706967085582,-8432.43954102,0.00042046,2]
[313222508,1706967085591,-29564.43511768,0.00042046,2]
[313222509,1706967085600,-549.51465091,0.00042046,2]
[313222510,1706967085610,-765.66177568,0.00042046,2]
[313222511,1706967085619,-263.26266717,0.00042046,2]
[313222512,1706967085628,-8815.21519254,0.00042046,2]
[313222513,1706967085637,-550.0,0.00042046,2]
[313222514,1706967085647,-1002.3461168,0.00042046,2]
[313222515,1706967085656,-10272.4540195,0.00042046,2]
[313222516,1706967085665,-162509.57144287,0.00042046,2]
[313222517,1706967085674,-14350.29328072,0.00042046,2]
[313222518,1706967085683,-6000.0,0.00042046,2]
[313222519,1706967085693,-692.2746183,0.00042046,2]
[313222520,1706967085702,-14041.48238824,0.00042046,2]
[313222521,1706967085711,-342.04142746,0.00042046,2]
[313222522,1706967085720,-200.0,0.00042046,2]
[313222523,1706967085729,-627.00494881,0.00042046,2]
[313222524,1706967085738,-601.38173417,0.00042046,2]
[313222525,1706967085748,-206.20562856,0.00042046,2]
[313222526,1706967085757,-142542.51984001,0.00042046,2]
[313222527,1706967085767,-3764.17096517,0.00042046,30]
[313222528,1706967085776,-3137.97494865,0.00042046,120]
[313222529,1706967085785,-500.0,0.00042046,120]
[313222530,1706967085794,-3633.63270192,0.00042046,35]
[313222531,1706967085803,-399.615691,0.00042046,30]
[313222532,1706967085812,-82928.79053403,0.00042046,2]
[313222533,1706967085821,-594.29433632,0.00042046,90]
[313222534,1706967085830,-10716.60740948,0.00042046,2]
[313222535,1706967085839,-368.68229683,0.00042046,120]
[313222536,1706967085848,-2698.17335163,0.00042046,2]
[313222537,1706967085857,-431.11735391,0.00042046,2]
[313222538,1706967085866,-1024.30418409,0.00042046,2]
[313222539,1706967085875,-20397.29443207,0.00042046,2]
[313222540,1706967085883,-4339.12819081,0.00042046,2]
[313222541,1706967085893,-2500.0,0.00042046,2]
[313222542,1706967085902,-556.27576077,0.00042046,2]
[313222543,1706967085911,-26687.89190153,0.00042046,2]
[313222544,1706967085920,-2284.92602711,0.00042046,2]
[313222545,1706967085928,-231.15760395,0.00042046,2]
[313222546,1706967085937,-517.62003549,0.00042046,2]
[313222547,1706967085946,-169038.13896471,0.00042046,2]
[313222548,1706967085955,-437336.05452686,0.00042046,2]
[313222549,1706967085964,-364499.92064351,0.00042046,30]
[313222550,1706967085973,-179.12835543,0.00042046,120]
[313222551,1706967085982,-1000.0,0.00042046,2]
[313222552,1706967085992,-154.85902515,0.00042046,2]
[313222553,1706967086001,-231.20856451,0.00042046,30]
[313222554,1706967086010,-4000.0,0.00042046,30]
[313222555,1706967086019,-7299.93633649,0.00042046,30]
[313222556,1706967086028,-5350.8277526,0.00042046,30]
[313222557,1706967086037,-3724.18534351,0.00042046,60]
[313222558,1706967086046,-1090.35213522,0.00042046,120]
[313222559,1706967086055,-300.0,0.00042046,15]
[313222560,1706967086064,-1996433.23619375,0.00042046,5]
[313222561,1706967086073,-1246.27935772,0.00042046,15]
[313222562,1706967086082,-1010.12687451,0.00042046,120]
[313222563,1706967086091,-2663.71440388,0.00042046,30]
[313222564,1706967086100,-1170.03859362,0.00042046,3]
[313222565,1706967086109,-718.91391592,0.00042046,30]
[313222566,1706967086118,-609211.45683232,0.00042046,30]
[313222567,1706967086439,-89469.32390627,0.00042046,30]
[313222568,1706967086449,-18698.90288296,0.00042046,3]
[313222569,1706967086458,-3784.75781942,0.00042046,3]
[313222570,1706967086470,-30258.75304163,0.00042046,30]
[313222571,1706967086480,-500.0,0.00042046,11]
[313222572,1706967086489,-200.0,0.00042046,31]
[313222573,1706967086498,-45532.06176848,0.00042046,7]
[313222574,1706967086507,-84334.56492524,0.00042046,120]
[313222575,1706967086517,-11330.6718147,0.00042046,120]
[313222576,1706967086526,-7300.0,0.00042046,120]
[313222577,1706967086535,-13619.61444708,0.00042046,7]
[313222578,1706967086545,-7197.0,0.00042046,4]
[313222579,1706967086555,-226.41543883,0.00042046,120]
[313222580,1706967086565,-3698.78789109,0.00042046,120]
[313222581,1706967086574,-344.74756673,0.00042046,90]
[313222582,1706967086583,-277.66338381,0.00042046,120]
[313222583,1706967086593,-376.20993194,0.00042046,120]
[313222584,1706967086603,-151.94214896,0.00042046,120]
[313222585,1706967086612,-268.40262314,0.00042046,7]
[313222586,1706967086621,-1283.82117297,0.00042046,120]
[313222587,1706967086630,-165.07734855,0.00042046,120]
[313222588,1706967086639,-839.95158338,0.00042046,120]
[313222589,1706967086648,-18190.17326089,0.00042046,120]
[313222590,1706967086657,-153.63863401,0.00042046,120]
[313222591,1706967086667,-488.65949673,0.00042046,7]
[313222592,1706967086677,-2625.19170944,0.00042046,120]
[313222593,1706967086686,-4152.08805535,0.00042046,120]
[313222594,1706967086695,-11728.999999,0.00042046,120]
[313222595,1706967086705,-23650.7848443,0.00042046,7]
[313222596,1706967086714,-598133.05671,0.00042046,120]
[313222597,1706967086723,-2034.63802143,0.00042046,30]
[313222598,1706967086732,-1617.48,0.00042046,11]
[313222599,1706967086745,-603.46003163,0.00042046,20]
[313222600,1706967086755,-1867.82596468,0.00042046,120]
[313222601,1706967086764,-1138.7269363,0.00042046,120]
[313222602,1706967086773,-188.07451839,0.00042046,30]
[313222603,1706967086784,-283.59670888,0.00042046,30]
[313222604,1706967086793,-632.89102644,0.00042046,30]
[313222605,1706967086804,-267.39078182,0.00042046,120]
[313222606,1706967086814,-169.64857275,0.00042046,30]
[313222607,1706967086824,-184.96225298,0.00042046,120]
[313222608,1706967086834,-156.34158911,0.00042046,30]
[313222609,1706967086845,-1492.03970376,0.00042046,120]
[313222610,1706967086855,-5239.28195359,0.00042046,30]
[313222611,1706967086864,-3501.09950898,0.00042046,30]
[313222612,1706967086873,-161.0,0.00042046,120]
[313222613,1706967086882,-323.6478,0.00042046,120]
[313222614,1706967086891,-1448.5444032,0.00042046,120]
[313222615,1706967086901,-4401.79609727,0.00042046,30]
[313222616,1706967086910,-265629.75722781,0.00042046,5]
[313222617,1706967086919,-265.74167391,0.00042046,80]
[313222618,1706967086928,-281.0,0.00042046,120]
[313222619,1706967086937,-3004.45308082,0.00042046,13]
[313222620,1706967086947,-278.74049753,0.00042046,120]
[313222621,1706967086958,-10361.15890308,0.00042046,120]
[313222622,1706967086968,-191.77756599,0.00042046,120]
[313222623,1706967086977,-621.96,0.00042046,2]
[313222624,1706967086987,-3175.29194882,0.00042046,30]
[313222625,1706967086996,-6954.41179899,0.00042046,120]
[313222626,1706967087006,-216.0,0.00042046,120]
[313222627,1706967087016,-471.61808105,0.00042046,120]
[313222628,1706967087026,-3764.46518126,0.00042046,120]
[313222629,1706967087035,-2000.0,0.00042046,30]
[313222630,1706967087046,-2000.0,0.00042046,30]
[313222631,1706967087056,-2000.0,0.00042046,30]
[313222632,1706967087066,-2000.0,0.00042046,30]
[313222633,1706967087076,-2000.0,0.00042046,30]
[313222634,1706967087085,-2065.2,0.00042046,30]
[313222635,1706967087095,-312.11883345,0.00042046,30]
[313222636,1706967087105,-2000.0,0.00042046,30]
[313222637,1706967087115,-177.68337649,0.00042046,30]
[313222638,1706967087125,-3001.61795363,0.00042046,10]
[313222639,1706967087136,-112145.28747719,0.00042046,32]
[313222640,1706967087145,-1499.81881308,0.00042046,7]
[313222641,1706967087154,-153709.859,0.00042046,7]
[313222642,1706967087164,-1709.0,0.00042046,120]
[313222643,1706967087173,-883.42836765,0.00042046,120]
[313222644,1706967087183,-3812.53297742,0.00042046,2]
[313222645,1706967087193,-10415.1139,0.00042046,7]
[313222646,1706967087202,-1431.72198065,0.00042046,2]
[313222647,1706967087213,-37980.36636107,0.00042046,14]
[313222648,1706967087222,-1732.900761,0.00042046,30]
[313222649,1706967087232,-1000.0,0.00042046,2]
[313222650,1706967087241,-1000.0,0.00042046,2]
[313222651,1706967087250,-1000.0,0.00042046,2]
[313222652,1706967087259,-1000.0,0.00042046,2]
[313222653,1706967087268,-1000.0,0.00042046,2]
[313222654,1706967087278,-1000.0,0.00042046,2]
[313222655,1706967087287,-1000.0,0.00042046,2]
[313222656,1706967087296,-1000.0,0.00042046,2]
[313222657,1706967087305,-1000.0,0.00042046,2]
[313222658,1706967087314,-1000.0,0.00042046,2]
[313222659,1706967087324,-1490.791252,0.00042046,2]
[313222660,1706967087333,-25744.415882,0.00042046,63]
[313222661,1706967087342,-467.63250404,0.00042046,60]
[313222662,1706967087350,-1000.0,0.00042046,18]
[313222663,1706967087360,-1000.0,0.00042046,18]
[313222664,1706967087367,-1000.0,0.00042046,18]
[313222665,1706967087376,-1000.0,0.00042046,18]
[313222666,1706967087384,-1000.0,0.00042046,18]
[313222667,1706967087392,-1000.0,0.00042046,18]
[313222668,1706967087417,-1000.0,0.00042046,18]
[313222669,1706967087427,-1000.0,0.00042046,18]
[313222670,1706967087437,-1000.0,0.00042046,18]
[313222671,1706967087447,-1000.0,0.00042046,18]
[313222672,1706967087457,-1000.0,0.00042046,18]
[313222673,1706967087466,-1000.0,0.00042046,18]
[313222674,1706967087479,-1000.0,0.00042046,18]
[313222675,1706967087490,-1000.0,0.00042046,18]
[313222676,1706967087499,-1000.0,0.00042046,18]
[313222677,1706967087509,-1000.0,0.00042046,18]
[313222678,1706967087520,-1000.0,0.00042046,18]
[313222679,1706967087529,-1920.781969,0.00042046,18]
[313222680,1706967087539,-152.79882539,0.00042046,120]
[313222681,1706967087551,-152.79882539,0.00042046,120]
[313222682,1706967087561,-18578.09899957,0.00042046,2]
[313222683,1706967087570,-534.974774,0.00042074,30]
[313222684,1706967087579,-298.002477,0.00042074,30]
[313222685,1706967087589,-391.971729,0.00042074,30]
[313222686,1706967087598,-447.003716,0.00042074,30]
[313222687,1706967087608,-425.990499,0.00042074,30]
[313222688,1706967087618,-666.0,0.000421,4]
[313222689,1706967087627,-3200.0,0.000421,13]
[313222690,1706967087637,-152.57148147,0.00042168,14]
[313222691,1706967087647,-150.0,0.00042177,2]
[313222692,1706967087656,-223.0,0.000422,7]
[313222693,1706967087665,-1000.0,0.00042205,2]
[313222694,1706967087675,-183.09987742,0.00042231,3]
[313222695,1706967087684,-236.75454593,0.00042231,3]
[313222696,1706967087693,-1028.84203368,0.00042241,10]
[313222697,1706967087702,-2116.36727763,0.000423,3]
[313222698,1706967087711,-3144.0,0.0004234,30]
[313222699,1706967087721,-3144.0,0.0004234,60]
[313222700,1706967087730,-150.5484575,0.0004234,30]
[313222701,1706967087739,-1000.0,0.00042353,4]
[313222702,1706967087749,-604.0,0.00042361,7]
[313222703,1706967087770,-153.82890557,0.0004238,30]
[313222704,1706967087780,-5000.0,0.00042395,4]
[313222705,1706967087789,-1000.0,0.00042424,11]
[313222706,1706967087799,-1995.02,0.00042445,2]
[313222707,1706967087808,-155.0,0.00042467,2]
[313222708,1706967087817,-534.974774,0.00042581,30]
[313222709,1706967087826,-298.002477,0.00042581,30]
[313222710,1706967087836,-391.971729,0.00042581,30]
[313222711,1706967087846,-425.990499,0.00042581,30]
[313222712,1706967087855,-447.003716,0.00042581,30]
[313222713,1706967087865,-121268.94440264,0.000427,60]
[313222714,1706967087874,-954.44873093,0.00042703,30]
[313222715,1706967087883,-506.34406,0.0004274,14]
[313222716,1706967087892,-400.0,0.0004277,3]
[313222717,1706967087902,-152.57148147,0.0004279,17]
[313222718,1706967087911,-1397.8525089,0.00042796,2]
[313222719,1706967087920,-297.0,0.00042796,7]
[313222720,1706967087930,-195.73199601,0.000428,41]
[313222721,1706967087940,-183.09987742,0.00042895,4]
[313222722,1706967087949,-236.75454593,0.00042895,4]
[313222723,1706967087958,-2731.73275548,0.00042897,42]
[313222724,1706967087968,-299.27779395,0.00042985,30]
[313222725,1706967087977,-351.12346389,0.00042999,30]
[313222726,1706967087986,-100000.0,0.00043,13]
[313222727,1706967087995,-157.55880638,0.00043,120]
[313222728,1706967088004,-493.58763924,0.00043,120]
[313222729,1706967088014,-2000.0,0.00043,2]
[313222730,1706967088023,-504.28874659,0.00043,30]
[313222731,1706967088032,-6283.37,0.00043,7]
[313222732,1706967088041,-9611.54,0.00043,7]
[313222733,1706967088051,-1331.34,0.00043,7]
[313222734,1706967088060,-39223.64,0.00043,7]
[313222735,1706967088069,-2247.88,0.00043,8]
[313222736,1706967088078,-2011.65674472,0.00043,2]
[313222737,1706967088087,-228.0,0.00043,2]
[313222738,1706967088096,-500.0,0.00043,14]
[313222739,1706967088105,-2612.8821836,0.00043,2]
[313222740,1706967088114,-223.0,0.000431,7]
[313222741,1706967088124,-256.0,0.0004313,2]
[313222742,1706967088133,-1000.0,0.00043235,4]
[313222743,1706967088144,-150.0,0.00043259,2]
[313222744,1706967088154,-407.12218475,0.000433,30]
[313222745,1706967088163,-7647.31876799,0.00043305,5]
[313222746,1706967088172,-299.27779395,0.00043411,30]
[313222747,1706967088181,-152.57148147,0.00043412,19]
[313222748,1706967088191,-954.44873093,0.00043421,30]
[313222749,1706967088201,-1208.0,0.00043434,30]
[313222750,1706967088212,-299.27779395,0.00043455,30]
[313222751,1706967088222,-5000.0,0.00043506,4]
[313222752,1706967088234,-166.51155624,0.00043552,120]
[313222753,1706967088247,-183.09987742,0.00043558,4]
[313222754,1706967088257,-236.75454593,0.00043558,4]
[313222755,1706967088268,-506.34406,0.00043562,14]
[313222756,1706967088278,-1000.0,0.00043677,2]
[313222757,1706967088288,-207.69363454,0.000438,30]
[313222758,1706967088440,-8000.0,0.000438,2]
[313222759,1706967088450,-954.44873093,0.00043824,30]
[313222760,1706967088460,-666.0,0.00043835,2]
[313222761,1706967088471,-2356.24800636,0.00043835,2]
[313222762,1706967088481,-540.08608806,0.00043835,120]
[313222763,1706967088491,-1881.75,0.00043836,15]
[313222764,1706967088500,-8203.83,0.00043836,2]
[313222765,1706967088510,-155.0,0.00043837,2]
[313222766,1706967088519,-223.0,0.000439,7]
[313222767,1706967088528,-954.44873093,0.00043935,30]
[313222768,1706967088538,-3565.62752878,0.0004398,117]
[313222769,1706967088548,-100000.0,0.00044,14]
[313222770,1706967088557,-218.75371569,0.00044,30]
[313222771,1706967088566,-12625.0,0.00044,2]
[313222772,1706967088575,-2000.0,0.00044,2]
[313222773,1706967088585,-2484.58441492,0.00044,31]
[313222774,1706967088594,-332.18685913,0.00044,32]
[313222775,1706967088605,-6283.37,0.00044,7]
[313222776,1706967088615,-9611.54,0.00044,7]
[313222777,1706967088624,-1331.34,0.00044,7]
[313222778,1706967088634,-39223.64,0.00044,7]
[313222779,1706967088643,-191.44506989,0.00044,30]